bitfinex/quotes_BTCUSD_20250303
["timestamp","ask_amount","ask_price","bid_price","bid_amount"]
[1740960282352,0.01937219,94184.0,94183.0,0.3]
[1740960282573,0.28762571,94238.0,94183.0,0.3]
[1740960282792,0.28762571,94238.0,94180.0,0.0821]
[1740960282793,0.28762571,94238.0,94186.0,0.3]
[1740960283014,0.0005682,94226.0,94187.0,0.00148611]
[1740960283269,0.0005682,94226.0,94225.0,0.159193]
[1740960283710,0.0005682,94226.0,94189.0,0.0821]
[1740960283930,0.0005682,94226.0,94198.0,0.159238]
[1740960283931,0.28762571,94225.0,94198.0,0.159238]
[1740960284159,0.159215,94212.0,94189.0,0.0821]
[1740960284408,0.28762571,94225.0,94190.0,0.212336]
[1740960284662,0.28762571,94225.0,94189.0,0.0821]
[1740960285117,0.40034571,94225.0,94185.0,0.3]
[1740960285338,0.3,94224.0,94168.0,0.0454]
[1740960285557,0.159246,94194.0,94184.0,0.159262]
[1740960285815,0.15921,94215.0,94169.0,0.0014865]
[1740960286039,0.15923,94203.0,94169.0,0.0014865]
[1740960286277,0.3,94212.0,94191.0,0.15925]
[1740960286489,0.3,94213.0,94182.0,0.159265]
[1740960286700,0.3,94213.0,94168.0,0.0454]
[1740960286701,0.159235,94201.0,94168.0,0.0454]
[1740960286933,0.3,94213.0,94168.0,0.0454]
[1740960286934,0.30012024,94213.0,94168.0,0.0454]
[1740960287192,0.30012024,94213.0,94168.0,0.04688654]
[1740960287396,0.00012024,94213.0,94172.0,0.3]
[1740960287602,0.06258766,94213.0,94172.0,0.3]
[1740960287799,0.00012024,94213.0,94172.0,0.3]
[1740960288004,0.00012024,94213.0,94175.0,0.3]
[1740960288202,0.00012024,94213.0,94168.0,0.0454]
[1740960288606,0.02495005,94212.0,94194.0,0.159245]
[1740960288811,0.02495005,94212.0,94168.0,0.0454]
[1740960289006,0.02495005,94212.0,94171.0,0.3]
[1740960289213,0.03868508,94212.0,94171.0,0.3]
[1740960289407,0.02495005,94212.0,94168.0,0.0454]
[1740960289633,0.02495005,94212.0,94170.0,0.3]
[1740960289836,0.02025967,94211.0,94198.0,0.159238]
[1740960290045,0.02025967,94211.0,94168.0,0.0454]
[1740960290461,0.0048546,94210.0,94168.0,0.0454]
[1740960290703,0.02025967,94211.0,94168.0,0.0454]
[1740960290944,0.02025967,94211.0,94169.0,0.00148645]
[1740960291195,0.02025967,94209.0,94196.0,0.212321]
[1740960291418,0.02025967,94209.0,94200.0,0.212312]
[1740960291638,0.02025967,94209.0,94192.0,0.212331]
[1740960291885,0.02025967,94209.0,94171.0,0.3]
[1740960292126,0.02025967,94209.0,94171.0,0.618569]
[1740960292349,0.02025967,94209.0,94175.0,0.3]
[1740960292609,0.02025967,94209.0,94168.0,0.0454]
[1740960292610,0.02025967,94209.0,94208.0,0.159222]
[1740960292810,0.00012024,94213.0,94212.0,0.159215]
[1740960293212,0.00012024,94213.0,94212.0,0.459215]
[1740960294015,0.00012024,94213.0,94182.0,0.112]
[1740960294228,0.00012024,94213.0,94205.0,0.159226]
[1740960294469,0.00012024,94213.0,94200.0,0.0457]
[1740960294793,0.00012024,94213.0,94210.0,0.212289]
[1740960295002,0.00012024,94213.0,94212.0,0.159215]
[1740960295200,0.00056818,94213.0,94212.0,0.13321499]
[1740960296048,0.00056818,94213.0,94212.0,0.51270097]
[1740960296254,1.8e-07,94213.0,94212.0,0.51121499]
[1740960296458,0.02024846,94213.0,94212.0,0.51121499]
[1740960296875,4.6e-07,94213.0,94212.0,0.51121499]
[1740960298131,0.29262571,94265.0,94225.0,0.459193]
[1740960298277,0.159144,94255.0,94225.0,0.459193]
[1740960298528,0.3,94264.0,94225.0,0.159193]
[1740960299084,0.212175,94262.0,94225.0,0.159193]
[1740960299289,0.159142,94255.0,94225.0,0.159193]
[1740960299499,0.3,94264.0,94225.0,0.159193]
[1740960299500,0.159157,94246.0,94225.0,0.159193]
[1740960299617,0.3,94264.0,94224.0,0.3]
[1740960299618,0.159172,94238.0,94224.0,0.3]
[1740960299830,0.212215,94244.0,94225.0,0.159193]
[1740960300030,0.159186,94230.0,94184.0,0.11176]
[1740960300364,0.00418582,94226.0,94201.0,0.15935224]
[1740960300565,0.00418582,94226.0,94202.0,0.15923]
[1740960300766,0.00418582,94226.0,94201.0,0.00012024]
[1740960301144,0.159232,94202.0,94201.0,0.00012024]
[1740960301364,0.3811,94224.0,94201.0,0.00012024]
[1740960301644,0.159202,94220.0,94201.0,0.00012024]
[1740960301872,0.0811,94224.0,94201.0,0.00012024]
[1740960301873,0.00631235,94202.0,94201.0,0.00012024]
[1740960302071,0.3,94221.0,94201.0,0.00012024]
[1740960302281,0.00627755,94202.0,94201.0,0.00012024]
[1740960302477,0.159232,94202.0,94201.0,0.00012024]
[1740960302684,0.00627784,94202.0,94201.0,0.00012024]
[1740960303128,0.3,94222.0,94201.0,0.00012024]
[1740960303129,0.212287,94212.0,94201.0,0.00012024]
[1740960303332,0.3,94222.0,94201.0,0.00012024]
[1740960303333,0.00627753,94202.0,94201.0,0.00012024]
[1740960303663,0.3,94222.0,94173.0,0.3]
[1740960303872,0.1118,94230.0,94173.0,4.659e-05]
[1740960303873,0.212298,94207.0,94173.0,4.659e-05]
[1740960304073,0.159232,94203.0,94173.0,0.30004659]
[1740960304261,0.00616674,94202.0,94173.0,4.659e-05]
[1740960304457,0.28762571,94220.0,94175.0,0.3]
[1740960304658,0.00616713,94219.0,94216.0,0.212277]
[1740960305106,0.29379284,94219.0,94211.0,0.159216]
[1740960305395,0.29379284,94219.0,94184.0,0.30148619]
[1740960305629,0.00616713,94219.0,94218.0,0.159205]
[1740960305867,0.00044794,94226.0,94225.0,0.159193]
[1740960306123,0.00044794,94226.0,94225.0,0.459193]
[1740960306388,0.02333136,94242.0,94241.0,0.159166]
[1740960306389,3.6e-07,94242.0,94241.0,0.159166]
[1740960306659,3.6e-07,94280.0,94250.0,0.459151]
[1740960307439,3.6e-07,94280.0,94250.0,0.159151]
[1740960307680,0.212156,94270.0,94250.0,0.159151]
[1740960307927,0.212132,94281.0,94250.0,0.159151]
[1740960308131,0.28762571,94291.0,94250.0,0.159151]
[1740960308336,0.0452,94310.0,94250.0,0.159151]
[1740960308337,1e-06,94251.0,94250.0,0.159151]
[1740960308540,5e-08,94265.0,94264.0,0.459127]
[1740960308744,5e-08,94279.0,94265.0,0.3]
[1740960308945,9.9e-07,94285.0,94284.0,0.459093]
[1740960309147,0.09914769,94308.0,94292.0,0.45908]
[1740960309148,1e-06,94293.0,94292.0,0.45908]
[1740960309346,0.09914769,94308.0,94284.0,0.1239]
[1740960309347,0.09914769,94308.0,94307.0,0.459055]
[1740960309551,0.09914769,94308.0,94307.0,0.621375]
[1740960309552,6.9e-07,94308.0,94307.0,0.621375]
[1740960309957,0.00036347,94308.0,94307.0,0.70172502]
[1740960310162,0.00036347,94308.0,94307.0,0.621375]
[1740960310366,0.00036347,94308.0,94307.0,0.459055]
[1740960310502,0.00036347,94308.0,94307.0,0.571295]
[1740960310717,0.00036347,94308.0,94307.0,0.459055]
[1740960310923,0.00036347,94308.0,94288.0,0.2692]
[1740960311127,0.00036347,94308.0,94277.0,0.2692]
[1740960311352,0.00036347,94308.0,94273.0,0.11224]
[1740960311558,0.00036347,94308.0,94264.0,0.0483]
[1740960311783,0.00036347,94308.0,94250.0,0.0776]
[1740960312001,0.00036347,94308.0,94244.0,0.0483]
[1740960312201,0.159129,94263.0,94244.0,0.0483]
[1740960312405,0.3,94292.0,94244.0,0.0483]
[1740960312602,0.3,94292.0,94259.0,0.159134]
[1740960312803,0.212138,94278.0,94224.0,0.1577]
[1740960313003,0.00631387,94291.0,94224.0,0.0453]
[1740960313211,0.34990139,94290.0,94224.0,0.0453]
[1740960313441,0.00631355,94277.0,94224.0,0.0453]
[1740960313648,0.3,94287.0,94245.0,0.159159]
[1740960313866,0.159125,94265.0,94264.0,0.09399559]
[1740960314075,0.00631347,94276.0,94264.0,0.09399559]
[1740960314504,0.159125,94266.0,94264.0,0.09399559]
[1740960314912,0.3,94265.0,94264.0,0.09399559]
[1740960315139,0.30647579,94265.0,94264.0,0.06799558]
[1740960315789,0.30647579,94265.0,94264.0,0.0328446]
[1740960316263,0.00647579,94265.0,94220.0,0.00499]
[1740960316494,0.03064758,94264.0,94220.0,0.00499]
[1740960316737,0.3,94260.0,94220.0,0.00499]
[1740960316987,0.0759,94261.0,94220.0,0.00499]
[1740960316988,0.1592,94221.0,94220.0,0.00499]
[1740960317225,0.3,94221.0,94220.0,0.00499]
[1740960317460,0.3241,94241.0,94220.0,0.00499]
[1740960317758,0.00609201,94221.0,94220.0,0.00499]
[1740960318155,0.11276,94240.0,94220.0,0.00499]
[1740960318384,0.00649705,94221.0,94220.0,0.00499]
[1740960318594,0.1592,94221.0,94220.0,0.00499]
[1740960318797,0.15964794,94221.0,94220.0,0.00499]
[1740960319005,0.00044794,94221.0,94220.0,0.00499]
[1740960319248,0.00689261,94221.0,94220.0,0.00499]
[1740960319389,0.00044794,94221.0,94220.0,0.00499]
[1740960319600,0.00689125,94221.0,94220.0,0.00499]
[1740960319804,0.00044794,94221.0,94220.0,0.00499]
[1740960320003,0.00689109,94221.0,94220.0,0.00499]
[1740960320227,0.00689109,94221.0,94206.0,0.2123]
[1740960320444,0.00044794,94221.0,94214.0,0.159211]
[1740960320657,0.00044794,94221.0,94205.0,0.00511067]
[1740960321049,0.159225,94206.0,94205.0,0.00511067]
[1740960321824,0.16567922,94206.0,94205.0,0.00511067]
[1740960322340,0.00645422,94206.0,94205.0,0.00511067]
[1740960322738,0.3,94236.0,94205.0,0.00511067]
[1740960323337,0.159225,94207.0,94205.0,0.00511067]
[1740960323821,0.00562773,94206.0,94205.0,0.00511067]
[1740960324029,0.00562773,94206.0,94205.0,0.16433767]
[1740960324237,0.05312527,94309.0,94205.0,0.16433767]
[1740960324238,0.212216,94244.0,94220.0,0.159201]
[1740960324496,0.15919,94227.0,94214.0,0.159211]
[1740960324670,0.15919,94227.0,94205.0,0.00511067]
[1740960324873,0.159195,94224.0,94212.0,0.159214]
[1740960325052,0.00562787,94220.0,94205.0,0.00511067]
[1740960325255,0.00562787,94220.0,94188.0,0.21234]
[1740960325453,0.00574851,94220.0,94182.0,0.212353]
[1740960325776,0.00012064,94220.0,94175.0,0.0471]
[1740960325978,0.00012064,94220.0,94190.0,0.212335]
[1740960326184,0.00562799,94219.0,94176.0,0.32003713]
[1740960326386,0.00012064,94220.0,94219.0,0.159203]
[1740960326550,0.00012064,94220.0,94203.0,0.212307]
[1740960326746,0.00012064,94220.0,94191.0,0.217323]
[1740960326955,0.212277,94217.0,94191.0,0.217323]
[1740960327168,0.159206,94218.0,94205.0,0.159227]
[1740960327409,0.00012064,94220.0,94219.0,0.159203]
[1740960328472,0.00012064,94220.0,94217.0,0.212274]
[1740960328669,0.00012064,94220.0,94219.0,0.159203]
[1740960329082,0.00012064,94220.0,94219.0,0.459203]
[1740960329283,0.00012064,94220.0,94219.0,0.3]
[1740960329510,0.00012064,94220.0,94219.0,0.159203]
[1740960329732,0.00012064,94220.0,94208.0,0.159221]
[1740960329937,0.00012064,94220.0,94213.0,0.159212]
[1740960330141,0.00012064,94220.0,94194.0,0.0767]
[1740960330142,0.00012064,94220.0,94194.0,0.05069999]
[1740960330369,0.00012064,94220.0,94219.0,0.159203]
[1740960330557,0.00012064,94220.0,94192.0,0.0494]
[1740960330558,0.00012064,94220.0,94193.0,0.00148601]
[1740960330763,0.00012064,94220.0,94219.0,0.159203]
[1740960331130,0.00012064,94220.0,94194.0,0.3]
[1740960331333,0.00012064,94220.0,94219.0,0.159203]
[1740960332010,0.00012064,94220.0,94192.0,0.0002132]
[1740960332214,0.159247,94193.0,94192.0,0.0002132]
[1740960332427,0.159244,94195.0,94192.0,0.0002132]
[1740960332628,0.00561335,94193.0,94192.0,0.1594612]
[1740960332842,0.00012064,94220.0,94219.0,0.159203]
[1740960333059,0.00012064,94220.0,94192.0,0.0002132]
[1740960333264,0.159247,94193.0,94192.0,0.0002132]
[1740960333630,0.00561321,94193.0,94192.0,0.1594622]
[1740960334031,0.00788326,94220.0,94219.0,0.159203]
[1740960334255,0.212272,94219.0,94192.0,0.00169923]
[1740960334458,0.00788326,94220.0,94192.0,0.0002132]
[1740960334795,0.00560632,94219.0,94193.0,0.21233]
[1740960334927,0.00788326,94220.0,94192.0,0.0002132]
[1740960335132,0.00788326,94220.0,94168.0,0.0002133]
[1740960335133,0.00560659,94219.0,94169.0,0.31169319]
[1740960335341,0.159248,94193.0,94187.0,0.159257]
[1740960335547,0.0056046,94192.0,94168.0,0.0002133]
[1740960335748,0.212354,94183.0,94168.0,0.0002133]
[1740960335926,0.212357,94181.0,94168.0,0.0002133]
[1740960336126,0.00557497,94180.0,94168.0,0.0002133]
[1740960336333,0.21234,94189.0,94168.0,0.0002133]
[1740960336539,0.00557523,94188.0,94168.0,0.0002133]
[1740960336803,0.212338,94190.0,94168.0,0.0002133]
[1740960337020,0.212345,94186.0,94168.0,0.00025989]
[1740960337271,0.159259,94186.0,94174.0,0.159278]
[1740960337493,0.01338845,94189.0,94168.0,0.00025989]
[1740960337719,0.00562771,94185.0,94168.0,0.00025989]
[1740960337939,0.00562771,94185.0,94184.0,0.159262]
[1740960338147,0.00562771,94185.0,94168.0,0.00025989]
[1740960338148,0.00562771,94185.0,94168.0,0.00174639]
[1740960338359,0.3241,94192.0,94168.0,0.00025989]
[1740960338571,0.00557487,94184.0,94169.0,0.212384]
[1740960338793,0.3241,94192.0,94191.0,0.15925]
[1740960339002,0.3,94209.0,94169.0,0.212384]
[1740960339225,0.0048267,94192.0,94191.0,0.15925]
[1740960339444,0.0048267,94192.0,94185.0,0.15926]
[1740960339674,0.3,94207.0,94168.0,0.00025989]
[1740960339897,0.3241,94208.0,94168.0,0.00025989]
[1740960339898,0.15926,94186.0,94168.0,0.00025989]
[1740960340124,0.00483628,94191.0,94168.0,0.00025989]
[1740960340357,0.00483634,94185.0,94180.0,0.159267]
[1740960340619,0.3,94203.0,94168.0,0.00025989]
[1740960340875,0.3241,94206.0,94170.0,0.212381]
[1740960341085,0.0048363,94184.0,94183.0,0.159264]
[1740960341296,0.0048363,94184.0,94168.0,0.00025989]
[1740960341297,0.3,94209.0,94170.0,0.212381]
[1740960341499,0.3,94207.0,94170.0,0.00148651]
[1740960341720,0.3,94207.0,94168.0,0.00025989]
[1740960341721,0.00483571,94184.0,94183.0,0.159264]
[1740960341910,0.159239,94199.0,94187.0,0.159257]
[1740960342130,0.0048357,94206.0,94168.0,0.00025989]
[1740960342352,0.3241,94206.0,94200.0,0.159235]
[1740960342611,0.3241,94212.0,94170.0,0.3]
[1740960342840,0.212297,94208.0,94193.0,0.159247]
[1740960343273,0.3,94210.0,94192.0,0.212331]
[1740960343519,0.3,94210.0,94195.0,0.159242]
[1740960343750,0.159227,94205.0,94194.0,0.159245]
[1740960343974,0.3241,94212.0,94165.0,0.3]
[1740960344202,0.11272,94213.0,94165.0,0.3]
[1740960344203,0.3241,94213.0,94171.0,0.0456]
[1740960344439,0.11244,94226.0,94205.0,0.159226]
[1740960344440,0.159207,94217.0,94205.0,0.159226]
[1740960344655,0.32454794,94220.0,94205.0,0.159225]
[1740960344903,0.32454794,94220.0,94173.0,0.00148619]
[1740960345131,0.32454794,94220.0,94204.0,0.13322699]
[1740960345356,0.32454794,94220.0,94175.0,0.3]
[1740960345583,0.159217,94211.0,94198.0,0.159237]
[1740960345804,0.159212,94214.0,94201.0,0.159232]
[1740960346021,0.32466858,94220.0,94179.0,0.3]
[1740960346245,0.35718023,94220.0,94172.0,0.3]
[1740960346506,0.32466858,94220.0,94174.0,0.3]
[1740960346747,0.3,94218.0,94169.0,0.212384]
[1740960346987,0.159245,94195.0,94171.0,0.212379]
[1740960347204,0.3,94214.0,94170.0,0.3]
[1740960347429,0.3,94210.0,94170.0,0.3]
[1740960347923,0.3241,94213.0,94209.0,0.159219]
[1740960348175,0.02108593,94217.0,94169.0,0.00148618]
[1740960348391,0.212278,94216.0,94201.0,0.159232]
[1740960348645,0.15921,94216.0,94169.0,0.212384]
[1740960348864,0.159222,94208.0,94197.0,0.15924]
[1740960349097,0.159222,94208.0,94194.0,0.212326]
[1740960349098,0.212282,94214.0,94171.0,0.3]
[1740960349319,0.212284,94213.0,94198.0,0.212318]
[1740960349565,0.3241,94219.0,94170.0,0.3]
[1740960349566,0.02523696,94207.0,94170.0,0.3]
[1740960350023,0.02035255,94207.0,94206.0,0.159225]
[1740960350510,0.02035255,94207.0,94206.0,0.16071106]
[1740960350748,0.02035255,94207.0,94206.0,0.459225]
[1740960350749,5.5e-07,94207.0,94206.0,0.459225]
[1740960350982,5.2e-07,94221.0,94220.0,0.459201]
[1740960351188,0.00044773,94264.0,94263.0,0.159129]
[1740960351423,0.00044773,94264.0,94263.0,0.13312899]
[1740960352005,0.00044773,94264.0,94256.0,0.212187]
[1740960352006,0.00044773,94264.0,94262.0,0.159129]
[1740960352413,0.00044773,94264.0,94251.0,0.212198]
[1740960352612,0.00056844,94264.0,94242.0,0.0476]
[1740960352836,0.00056844,94264.0,94260.0,0.159133]
[1740960353040,0.00056844,94264.0,94262.0,0.15913]
[1740960353200,0.00497167,94263.0,94262.0,0.15913]
[1740960353407,0.00056844,94264.0,94242.0,0.0476]
[1740960354008,0.00497167,94263.0,94242.0,0.0476]
[1740960354216,0.00056844,94264.0,94261.0,0.159132]
[1740960354418,0.00056844,94264.0,94263.0,0.159129]
[1740960354761,0.00056844,94264.0,94252.0,0.3]
[1740960354964,0.00056844,94264.0,94229.0,0.0782]
[1740960355168,0.00056844,94264.0,94244.0,0.28569318]
[1740960355585,0.212172,94263.0,94244.0,0.28569318]
[1740960355804,0.00497164,94262.0,94244.0,0.28569318]
[1740960356102,0.00056844,94264.0,94245.0,0.159159]
[1740960356396,0.00056844,94264.0,94246.0,0.21221]
[1740960356604,0.159159,94245.0,94244.0,0.28569318]
[1740960356814,0.00497133,94245.0,94221.0,0.0468]
[1740960357026,0.159169,94240.0,94229.0,0.159186]
[1740960357231,0.159169,94240.0,94204.0,0.1255133]
[1740960357232,0.3,94260.0,94204.0,0.1255133]
[1740960357449,0.00497122,94239.0,94229.0,0.212248]
[1740960357655,0.3,94254.0,94204.0,0.1255133]
[1740960357875,0.3,94254.0,94205.0,0.212302]
[1740960358083,0.00497118,94253.0,94209.0,0.3]
[1740960358582,0.00497118,94253.0,94204.0,0.1255133]
[1740960358703,0.21716618,94253.0,94204.0,0.1255133]
[1740960358911,0.21716618,94253.0,94204.0,0.0002133]
[1740960358912,0.3241,94252.0,94204.0,0.0002133]
[1740960359108,0.3,94250.0,94204.0,0.0002133]
[1740960359310,0.00504259,94249.0,94204.0,0.2125173]
[1740960359559,0.212245,94231.0,94204.0,0.0002133]
[1740960359757,0.0050419,94230.0,94213.0,0.159212]
[1740960359980,14.5751407,94190.0,94189.0,0.159254]
[1740960360159,14.58018215,94190.0,94189.0,0.371593]
[1740960360924,14.58018215,94190.0,94189.0,0.67171364]
[1740960361541,14.20113915,94190.0,94189.0,0.67171364]
[1740960361952,13.75694015,94190.0,94189.0,0.67171364]
[1740960362153,13.75694015,94190.0,94189.0,1.23520682]
[1740960362154,13.23942315,94190.0,94189.0,1.23520682]
[1740960362352,11.4652998,94190.0,94189.0,1.75744682]
[1740960362576,10.87036241,94190.0,94189.0,1.81653386]
[1740960362780,10.64291886,94190.0,94189.0,1.44641369]
[1740960362981,10.64291886,94190.0,94189.0,2.00078169]
[1740960363187,10.64291886,94190.0,94189.0,1.81749814]
[1740960363398,9.95779004,94190.0,94189.0,1.76676897]
[1740960363606,9.02178309,94190.0,94189.0,1.76676897]
[1740960363847,8.27506369,94190.0,94189.0,1.3062511]
[1740960364052,8.27506369,94190.0,94189.0,1.52506264]
[1740960364254,8.24314939,94190.0,94189.0,1.2562511]
[1740960364458,8.24314939,94190.0,94189.0,1.6182111]
[1740960364670,7.58927663,94190.0,94189.0,1.91826953]
[1740960364875,7.36085333,94190.0,94189.0,1.66953453]
[1740960365080,7.24229535,94190.0,94189.0,2.11394155]
[1740960365288,6.66047595,94190.0,94189.0,2.11394155]
[1740960365494,5.89280676,94190.0,94189.0,2.11394155]
[1740960365694,5.65124176,94190.0,94189.0,2.11394155]
[1740960365901,5.61932746,94190.0,94189.0,2.11394155]
[1740960366135,5.31587948,94190.0,94189.0,2.11394155]
[1740960366351,4.80099818,94190.0,94189.0,2.11394155]
[1740960366563,4.50822318,94190.0,94189.0,2.08786801]
[1740960366987,4.44329833,94190.0,94189.0,1.78786801]
[1740960367208,4.42169833,94190.0,94189.0,2.06261812]
[1740960367420,2.29261803,94190.0,94189.0,2.11161896]
[1740960367642,2.21885003,94190.0,94189.0,2.11161896]
[1740960367789,1.76566057,94190.0,94189.0,2.11161896]
[1740960368001,0.005,94265.0,94263.0,0.3]
[1740960368203,0.005,94265.0,94263.0,0.159129]
[1740960369213,0.00049472,94264.0,94263.0,0.559129]
[1740960369608,0.00049472,94264.0,94263.0,0.459129]
[1740960370841,0.00049472,94264.0,94254.0,0.11244]
[1740960371089,0.00049472,94264.0,94233.0,0.3271]
[1740960371273,0.00049472,94264.0,94234.0,0.11252]
[1740960371634,0.00049472,94264.0,94235.0,0.00148517]
[1740960371749,0.32459472,94264.0,94235.0,0.00148517]
[1740960372353,0.32459472,94264.0,94235.0,0.21372017]
[1740960372627,0.32459472,94264.0,94235.0,0.00148517]
[1740960372847,0.32459472,94264.0,94243.0,0.212217]
[1740960372962,0.32459472,94264.0,94246.0,0.159156]
[1740960373163,0.32459472,94264.0,94247.0,0.00148516]
[1740960373387,0.32459472,94264.0,94234.0,0.324755]
[1740960373615,0.32459472,94264.0,94234.0,0.11252]
[1740960373616,0.00106093,94263.0,94234.0,0.11252]
[1740960373821,0.32459472,94264.0,94235.0,0.00148526]
[1740960374227,0.32459472,94264.0,94244.0,0.159161]
[1740960374419,0.32459472,94264.0,94245.0,0.00148515]
[1740960374619,0.32459472,94264.0,94235.0,0.00148515]
[1740960375065,0.32459472,94264.0,94235.0,0.30148515]
[1740960375274,0.32459472,94264.0,94263.0,0.159129]
[1740960375652,0.32837061,94264.0,94263.0,0.159129]
[1740960375855,0.00427061,94264.0,94263.0,0.16061405]
[1740960376056,0.00427061,94264.0,94263.0,0.46061391]
[1740960376258,0.00049472,94264.0,94263.0,0.459129]
[1740960376703,0.00049472,94264.0,94263.0,0.3]
[1740960377207,0.00049472,94264.0,94240.0,0.05]
[1740960377427,0.00049472,94264.0,94210.0,0.42458]
[1740960377428,0.00049472,94264.0,94226.0,0.05]
[1740960377562,0.0785,94263.0,94241.0,0.11296]
[1740960377909,0.00376157,94262.0,94251.0,0.159148]
[1740960378220,0.00376157,94262.0,94252.0,0.00148517]
[1740960378383,0.00376157,94262.0,94210.0,0.40189095]
[1740960378384,0.00376157,94262.0,94243.0,0.11316]
[1740960378786,0.3763,94260.0,94207.0,0.15312]
[1740960379137,0.0763,94258.0,94208.0,0.00148551]
[1740960379420,0.048,94244.0,94198.0,0.212318]
[1740960379620,0.00483936,94243.0,94191.0,0.212334]
[1740960379830,0.00483936,94243.0,94194.0,0.11428]
[1740960379831,0.0763,94239.0,94194.0,0.11428]
[1740960380022,0.3,94237.0,94200.0,0.159234]
[1740960380256,0.02622472,94236.0,94194.0,0.11428]
[1740960380460,0.212242,94232.0,94194.0,0.11428]
[1740960380606,0.212246,94230.0,94194.0,0.11428]
[1740960380808,0.4243,94228.0,94191.0,0.09459232]
[1740960381016,0.38673916,94229.0,94191.0,0.09459232]
[1740960381017,0.348,94214.0,94191.0,0.09459232]
[1740960381287,0.00483876,94213.0,94191.0,0.09459232]
[1740960381621,0.00488571,94213.0,94191.0,0.09459232]
[1740960382984,0.00382478,94213.0,94192.0,0.00148609]
[1740960383410,0.00382478,94213.0,94191.0,0.09459232]
[1740960383766,0.00382478,94213.0,94190.0,0.0002133]
[1740960384384,0.00382478,94213.0,94193.0,0.159246]
[1740960384589,0.00382478,94213.0,94190.0,0.0002133]
[1740960384590,0.32792478,94213.0,94190.0,0.0002133]
[1740960385001,0.00106093,94212.0,94190.0,0.0002133]
[1740960385214,0.0828,94209.0,94190.0,0.0002133]
[1740960385427,0.212298,94207.0,94190.0,0.0002133]
[1740960385630,0.1287,94191.0,94190.0,0.0002133]
[1740960385836,0.5106,94191.0,94190.0,0.0002133]
[1740960386041,0.0781,94189.0,94137.0,0.0142561]
[1740960386241,0.0459,94170.0,94137.0,0.0142561]
[1740960386441,0.18466093,94170.0,94137.0,0.0142561]
[1740960386642,0.1836,94170.0,94139.0,0.212449]
[1740960387048,0.00367071,94169.0,94140.0,0.00148671]
[1740960387466,0.00367071,94169.0,94141.0,0.00148668]
[1740960387692,0.00367071,94169.0,94168.0,0.00033394]
[1740960388665,0.00367071,94169.0,94168.0,0.159289]
[1740960388884,0.00367071,94169.0,94163.0,0.00032394]
[1740960389106,0.00367071,94169.0,94168.0,0.159289]
[1740960389307,0.00367071,94169.0,94164.0,0.159296]
[1740960389534,0.00367071,94169.0,94168.0,0.159289]
[1740960389735,0.00367071,94169.0,94163.0,0.00072432]
[1740960390314,0.3819,94182.0,94163.0,0.00072432]
[1740960390684,0.00373766,94168.0,94163.0,0.00072432]
[1740960391104,0.3819,94182.0,94163.0,0.00072432]
[1740960391308,0.00373775,94181.0,94180.0,0.159269]
[1740960391601,0.00373761,94167.0,94163.0,0.00072432]
[1740960391912,0.00373757,94181.0,94163.0,0.00072432]
[1740960392116,0.00373773,94166.0,94163.0,0.00072432]
[1740960392318,0.00373773,94166.0,94163.0,0.00093762]
[1740960392440,0.3819,94182.0,94163.0,0.00093762]
[1740960392848,0.00367498,94181.0,94163.0,0.00093762]
[1740960393078,0.38296093,94180.0,94163.0,0.00093762]
[1740960393278,0.3819,94180.0,94163.0,0.00093762]
[1740960393477,0.00106093,94179.0,94163.0,0.00093762]
[1740960394009,0.00473573,94179.0,94163.0,0.00093762]
[1740960394215,0.0036748,94179.0,94163.0,0.00093762]
[1740960394621,0.02165443,94177.0,94163.0,0.00093762]
[1740960395295,0.00367849,94176.0,94137.0,0.0642561]
[1740960395486,0.00367849,94176.0,94137.0,0.0142561]
[1740960395773,0.00040211,94177.0,94139.0,0.05]
[1740960395992,0.00367843,94175.0,94141.0,0.212447]
[1740960396114,0.00367843,94175.0,94142.0,0.00116884]
[1740960396321,0.00367852,94176.0,94148.0,0.159322]
[1740960396548,0.00367852,94176.0,94150.0,0.15932]
[1740960396754,0.00367847,94174.0,94137.0,0.0142561]
[1740960396974,0.159281,94173.0,94139.0,0.159337]
[1740960397261,0.00185837,94172.0,94138.0,0.114]
[1740960397477,0.02110301,94169.0,94138.0,0.00116924]
[1740960397682,0.07965837,94168.0,94137.0,0.0142561]
[1740960397895,0.1074,94167.0,94137.0,0.0142561]
[1740960398097,0.38375857,94166.0,94137.0,0.0142561]
[1740960398298,0.38375857,94165.0,94137.0,0.0142561]
[1740960398498,0.15934,94138.0,94137.0,0.0142561]
[1740960398701,0.4515,94138.0,94137.0,0.0142561]
[1740960398903,0.58674,94138.0,94137.0,0.0142561]
[1740960399125,0.59248364,94138.0,94137.0,0.0142561]
[1740960399486,0.43314364,94138.0,94137.0,0.0142561]
[1740960399987,0.43314364,94138.0,94137.0,0.01430269]
[1740960400181,0.43314364,94138.0,94118.0,0.99889578]
[1740960400182,0.3,94137.0,94118.0,0.99889578]
[1740960400379,0.38375915,94136.0,94120.0,4.01e-05]
[1740960400616,0.38708821,94136.0,94120.0,4.01e-05]
[1740960401173,0.38708821,94136.0,94121.0,0.0011708]
[1740960401383,0.38708821,94136.0,94120.0,4.01e-05]
[1740960401384,0.01932779,94135.0,94120.0,4.01e-05]
[1740960401587,0.01932779,94135.0,94120.0,0.00121067]
[1740960401786,0.00516485,94134.0,94120.0,0.00121067]
[1740960401984,0.00516485,94134.0,94125.0,0.159362]
[1740960402185,0.00516485,94134.0,94120.0,4.01e-05]
[1740960402387,0.00516485,94134.0,94120.0,0.00121056]
[1740960402725,0.00516485,94134.0,94120.0,4.01e-05]
[1740960402910,0.00516485,94134.0,94120.0,0.00121055]
[1740960403121,0.00516485,94134.0,94120.0,4.01e-05]
[1740960403611,0.3241,94133.0,94120.0,0.00121063]
[1740960403787,0.00512635,94132.0,94120.0,4.01e-05]
[1740960404013,0.00512635,94132.0,94120.0,0.0002535]
[1740960404362,0.3819,94131.0,94120.0,0.0002535]
[1740960404562,0.00512555,94130.0,94120.0,0.00142432]
[1740960405162,0.00512555,94130.0,94118.0,0.97432009]
[1740960405372,0.3819,94131.0,94118.0,0.9743602]
[1740960405586,0.05398693,94226.0,94118.0,0.9743602]
[1740960405587,0.0799,94149.0,94119.0,0.3]
[1740960405829,0.0799,94149.0,94119.0,0.628656]
[1740960406030,0.0799,94149.0,94119.0,0.41616]